bitfinex/quotes_ETHUSD_20251021
["timestamp","ask_amount","ask_price","bid_price","bid_amount"]
[1761083294263,0.2194,3956.9,3956.0,16.53517977]
[1761083294591,2.52589168,3959.0,3957.9,2.52659081]
[1761083294898,2.52589168,3959.0,3956.3,2.52761418]
[1761083294899,3.303,3958.8,3958.1,2.5264517]
[1761083295196,1.5552,3958.7,3958.1,2.5264517]
[1761083295962,1.5552,3958.7,3958.2,14.5]
[1761083296181,0.39987712,3959.1,3958.2,14.5]
[1761083296182,0.39987712,3959.1,3958.3,5.82933706]
[1761083296471,0.39987712,3959.1,3958.3,3.303]
[1761083296783,0.39987712,3959.1,3958.9,2.52590603]
[1761083297564,0.39987712,3959.1,3958.5,2.52620471]
[1761083297782,0.39987712,3959.1,3958.7,2.52608179]
[1761083298180,0.39987712,3959.1,3958.8,2.52600721]
[1761083298568,0.39987712,3959.1,3958.9,14.5]
[1761083304497,0.39987712,3959.1,3958.9,14.86634024]
[1761083304695,0.39987712,3959.1,3959.0,2.52589037]
[1761083306813,0.39987712,3959.1,3959.0,5.81889037]
[1761083307102,0.39987712,3959.1,3958.9,14.86834024]
[1761083307103,0.39987712,3959.1,3958.9,14.502]
[1761083307304,0.82747712,3959.1,3958.9,14.502]
[1761083307679,0.39987712,3959.1,3958.9,14.502]
[1761083311619,0.82747712,3959.1,3958.9,14.502]
[1761083311919,0.39987712,3959.1,3958.9,14.502]
[1761083314234,0.39987712,3959.1,3958.9,0.002]
[1761083315820,0.82747712,3959.1,3958.9,0.002]
[1761083316028,0.39987712,3959.1,3958.9,0.002]
[1761083320317,2.95349037,3959.0,3958.9,0.002]
[1761083320513,3.61672712,3959.0,3958.9,0.002]
[1761083320715,2.5261456,3958.6,3958.5,0.002]
[1761083321027,0.2257,3958.7,3958.5,0.002]
[1761083321520,5.80501869,3958.8,3958.5,0.002]
[1761083321719,3.31357602,3958.7,3958.5,0.002]
[1761083321953,2.5261456,3958.6,3958.5,0.002]
[1761083322114,2.9537456,3958.6,3958.5,0.002]
[1761083324045,2.98532242,3958.6,3958.5,0.002]
[1761083325755,5.0158256,3958.6,3958.5,0.002]
[1761083325923,7.73415088,3958.2,3958.1,0.002]
[1761083326128,2.06208,3958.1,3956.4,2.52753914]
[1761083326326,2.06208,3958.1,3956.4,1.5552]
[1761083326327,3.281,3958.1,3956.4,1.5552]
[1761083326545,2.52657042,3958.0,3956.5,0.0063]
[1761083326746,2.52659107,3958.0,3956.5,0.0063]
[1761083326956,2.52659107,3958.0,3956.6,0.25338051]
[1761083327256,3.281,3958.1,3956.6,0.25338051]
[1761083327257,2.52659915,3957.9,3957.1,2.52708578]
[1761083327823,2.52654009,3958.0,3957.2,2.53330573]
[1761083328029,2.52654009,3958.0,3957.3,17.02697157]
[1761083328251,3.281,3958.1,3957.3,14.5]
[1761083328455,2.52657323,3958.0,3957.3,14.5]
[1761083328757,2.52654248,3958.0,3957.3,14.5]
[1761083328955,2.52654248,3958.0,3957.3,17.02695648]
[1761083329457,2.5267035,3957.8,3957.3,14.5]
[1761083329656,0.4276,3957.7,3957.3,14.5]
[1761083330168,0.4276,3957.7,3956.6,0.25338051]
[1761083330169,0.03158479,3957.6,3956.6,0.25338051]
[1761083330331,2.52706128,3957.2,3956.5,4.8362]
[1761083330526,3.281,3957.3,3956.6,14.5]
[1761083330744,2.55867222,3957.2,3956.6,14.5]
[1761083330957,2.98627222,3957.2,3956.6,14.5]
[1761083331179,2.52723806,3956.9,3956.6,14.5]
[1761083331553,0.4276,3956.8,3956.6,14.5]
[1761083331953,0.4276,3956.8,3956.0,3.282]
[1761083332283,0.4276,3956.8,3956.0,0.002]
[1761083332481,2.52745025,3956.6,3956.0,0.002]
[1761083332668,0.4276,3956.8,3956.0,0.002]
[1761083333078,2.95490289,3956.8,3956.0,0.002]
[1761083333283,2.52747413,3956.6,3956.0,0.002]
[1761083333491,2.52749128,3956.5,3956.0,0.002]
[1761083333654,2.52757262,3956.4,3956.0,0.002]
[1761083333981,2.52753572,3956.5,3956.0,0.002]
[1761083334199,2.95502044,3956.7,3956.0,0.002]
[1761083334358,0.4276,3956.7,3956.0,0.002]
[1761083334557,2.52755888,3956.4,3956.0,0.002]
[1761083335086,2.52750015,3956.5,3956.0,0.002]
[1761083335769,2.99870015,3956.5,3956.0,0.002]
[1761083336166,2.52755363,3956.4,3956.0,0.002]
[1761083336370,5.80555363,3956.4,3956.0,0.002]
[1761083340190,0.4712,3956.3,3956.0,0.002]
[1761083340694,0.4712,3956.3,3955.6,0.002]
[1761083340695,2.52791824,3955.9,3955.6,0.002]
[1761083340896,0.84612,3956.3,3955.6,0.002]
[1761083340897,0.2182,3955.7,3955.6,0.002]
[1761083341592,3.28,3955.7,3955.6,0.002]
[1761083341796,0.2182,3956.1,3955.6,0.002]
[1761083342007,1.5552,3955.9,3955.6,0.002]
[1761083343376,3.28,3955.8,3955.6,0.002]
[1761083344199,2.52757273,3956.4,3955.6,0.002]
[1761083344200,3.278,3956.2,3955.7,2.52795157]
[1761083344504,3.278,3956.2,3955.6,0.0103]
[1761083344505,3.278,3956.2,3955.8,2.52792812]
[1761083347301,3.278,3956.2,3955.6,0.202]
[1761083347302,3.278,3956.2,3955.7,2.52798146]
[1761083348812,3.278,3956.2,3955.7,2.52798878]
[1761083349983,3.278,3956.2,3955.6,0.202]
[1761083350198,3.278,3956.2,3955.6,2.7300494]
[1761083350509,5.80568206,3956.2,3955.6,2.7300494]
[1761083352520,3.278,3956.2,3955.6,2.7300494]
[1761083355434,5.80568129,3956.2,3955.6,2.7300494]
[1761083355905,3.278,3956.2,3955.6,2.7300494]
[1761083356314,3.278,3956.2,3955.6,2.73003924]
[1761083356724,5.80567876,3956.2,3955.6,0.202]
[1761083357093,5.80667876,3956.2,3955.6,0.202]
[1761083357296,3.279,3956.2,3955.6,0.202]
[1761083357605,3.279,3956.2,3955.7,2.52797928]
[1761083358007,3.279,3956.2,3955.6,0.202]
[1761083358210,3.279,3956.2,3955.6,2.73004574]
[1761083358406,3.279,3956.2,3955.7,2.52798327]
[1761083359528,3.279,3956.2,3955.8,2.52793251]
[1761083360032,3.279,3956.2,3955.7,2.52799757]
[1761083360336,0.001,3956.2,3955.8,2.52793293]
[1761083360506,0.001,3956.2,3955.6,0.202]
[1761083360708,0.001,3956.2,3955.8,2.52790622]
[1761083360891,0.001,3956.2,3955.8,2.52792983]
[1761083361095,0.4352,3956.2,3955.7,2.52794647]
[1761083361599,0.001,3956.2,3955.7,2.52794647]
[1761083362223,0.001,3956.2,3955.8,2.52793145]
[1761083362529,0.001,3956.2,3955.7,2.52799757]
[1761083364824,0.001,3956.2,3955.8,2.52793298]
[1761083365731,0.001,3956.2,3955.6,0.202]
[1761083366034,0.001,3956.2,3955.7,2.52798736]
[1761083366914,0.001,3956.2,3955.8,2.52792242]
[1761083369566,0.001,3956.2,3955.6,2.73005843]
[1761083369724,0.4575,3956.1,3955.6,0.202]
[1761083369923,3.76788,3956.0,3955.6,0.202]
[1761083370455,2.52793787,3955.8,3955.6,0.202]
[1761083370853,0.4575,3955.7,3955.6,0.202]
[1761083377770,2.98549757,3955.7,3955.6,0.202]
[1761083377967,3.66083533,3955.7,3955.6,0.202]
[1761083379336,0.001,3956.2,3955.6,0.202]
[1761083379660,3.261,3956.2,3955.6,0.202]
[1761083379861,0.001,3956.2,3956.1,2.52774196]
[1761083382769,0.001,3956.2,3956.0,2.52778999]
[1761083384679,0.001,3956.2,3955.7,2.52799507]
[1761083385001,0.4575,3956.1,3955.9,2.52782311]
[1761083386298,0.001,3956.2,3955.9,2.52782311]
[1761083389879,0.4585,3956.2,3955.9,2.52782311]
[1761083394672,0.4585,3956.2,3956.0,2.52779877]
[1761083398412,0.4585,3956.2,3956.1,2.52774196]
[1761083398732,0.001,3956.2,3956.1,2.52774196]
[1761083399814,0.001,3956.2,3956.1,17.02774196]
[1761083400194,0.45,3956.2,3956.1,17.02774196]
[1761083402791,0.001,3956.2,3956.1,17.02774196]
[1761083403024,0.45,3956.2,3956.1,17.02774196]
[1761083403821,0.001,3956.2,3956.1,17.02774196]
[1761083404026,0.001,3956.2,3956.1,19.30930869]
[1761083404203,0.001,3956.2,3956.1,19.31760869]
[1761083404409,0.001,3956.2,3956.1,21.63272849]
[1761083408830,0.001,3956.2,3956.1,28.45289249]
[1761083410333,0.001,3956.2,3956.1,28.95977249]
[1761083411339,0.001,3956.6,3956.5,12.39848741]
[1761083411501,0.001,3957.0,3956.9,3.03411091]
[1761083411698,0.001,3957.0,3956.9,21.90781042]
[1761083411899,0.001,3957.0,3956.9,35.16289842]
[1761083412132,0.001,3957.0,3956.9,35.26416975]
[1761083412348,0.001,3957.0,3956.9,34.71682448]
[1761083413949,0.001,3957.0,3956.9,33.81828848]
[1761083414645,0.001,3957.0,3956.9,31.22128848]
[1761083418453,0.001,3958.1,3958.0,2.52652854]
[1761083418637,0.001,3958.1,3958.0,9.22382205]
[1761083418841,0.001,3958.1,3958.0,9.67207533]
[1761083419258,0.001,3958.1,3958.0,10.12107533]
[1761083419939,0.001,3958.1,3958.0,24.62107533]
[1761083423164,0.001,3958.5,3958.4,2.52627324]
[1761083423364,0.001,3958.9,3958.8,2.52601798]
[1761083423528,0.001,3958.9,3958.8,6.9802885]
[1761083423859,0.6729,3958.9,3958.8,6.1868951]
[1761083424030,0.001,3958.9,3958.8,17.4258951]
[1761083424227,0.001,3958.9,3958.8,20.6878951]
[1761083425068,0.003,3959.8,3959.7,4.08064384]
[1761083425366,0.003,3959.8,3959.7,11.45255453]
[1761083425768,0.003,3959.8,3959.7,8.73396276]
[1761083425990,0.55240823,3960.6,3960.5,2.52493372]
[1761083426145,0.2295,3961.9,3960.7,2.52480622]
[1761083426349,0.2295,3961.9,3961.2,3.44029351]
[1761083426350,0.4424,3961.8,3961.2,3.44029351]
[1761083426571,0.4424,3961.8,3961.3,17.796]
[1761083427539,0.4424,3961.8,3961.3,14.5]
[1761083427741,0.03155211,3961.7,3961.3,14.5]
[1761083428256,2.52434519,3961.5,3961.3,14.5]
[1761083428478,0.29982973,3961.4,3961.3,14.5]
[1761083428679,0.4424,3961.5,3960.7,3.296]
[1761083428860,0.2295,3960.8,3960.7,3.296]
[1761083429172,0.2295,3960.8,3960.7,14.5]
[1761083429372,2.52480622,3960.7,3959.8,3.44029351]
[1761083429578,2.52480622,3960.7,3959.6,2.52545044]
[1761083429579,0.03156007,3960.7,3959.6,0.75922169]
[1761083429759,0.2295,3959.7,3959.6,0.75922169]
[1761083430077,0.2295,3959.7,3959.5,3.294]
[1761083430239,0.2295,3959.7,3959.1,5.96611021]
[1761083430240,0.4424,3959.6,3959.1,5.96611021]
[1761083430442,0.4424,3959.6,3959.3,3.3]
[1761083430859,0.4424,3959.6,3959.5,14.5]
[1761083434585,0.4424,3959.6,3959.1,2.52581953]
[1761083434986,0.4424,3959.6,3959.2,14.5]
[1761083435761,0.4424,3959.6,3959.2,17.025759]
[1761083436146,0.4424,3959.6,3959.2,14.5]
[1761083436546,0.4424,3959.6,3959.2,17.02574323]
[1761083436784,0.4424,3959.6,3959.2,14.5]
[1761083438179,0.4424,3959.6,3959.2,17.02573777]
[1761083438853,0.2295,3959.7,3959.2,20.46603878]
[1761083439090,0.4424,3959.6,3959.2,17.94029351]
[1761083439394,0.4424,3959.6,3959.2,14.5]
[1761083439562,2.52558102,3959.5,3959.2,14.5]
[1761083439959,0.4424,3959.4,3959.2,14.5]
[1761083440687,2.96803887,3959.4,3959.2,14.5]
[1761083440892,0.4424,3959.4,3959.2,14.5]
[1761083441100,0.4424,3959.3,3959.2,14.5]
[1761083443780,0.4424,3959.3,3958.8,3.44029351]
[1761083443781,0.4424,3959.3,3958.8,2.52597399]
[1761083443984,0.2295,3958.9,3958.8,2.52597399]
[1761083444180,0.6719,3958.9,3958.8,17.02597399]
[1761083445579,0.6719,3958.9,3958.8,17.02797399]
[1761083445908,0.6719,3958.9,3958.8,14.502]
[1761083447506,0.6719,3958.9,3958.8,0.002]
[1761083447507,0.99483773,3958.9,3958.8,0.002]
[1761083447724,3.55236632,3958.9,3958.8,0.002]
[1761083449028,5.5828719,3958.9,3958.8,0.002]
[1761083454015,8.8618719,3958.9,3958.8,0.002]
[1761083458650,8.8568719,3958.9,3958.8,0.002]
[1761083459149,8.3499919,3958.9,3958.8,0.002]
[1761083459446,8.02705417,3958.9,3958.8,0.002]
[1761083461548,7.35515417,3958.9,3958.8,0.002]
[1761083461725,7.80395417,3958.9,3958.8,0.002]
[1761083465461,7.35515417,3958.9,3958.8,0.002]
[1761083465666,5.278,3958.9,3958.8,0.002]
[1761083466048,7.80395417,3958.9,3958.8,0.002]
[1761083468057,8.1251684,3958.9,3958.8,0.002]
[1761083475589,8.6320484,3958.9,3958.8,0.002]
[1761083485872,8.1832484,3958.9,3958.8,0.002]
[1761083486197,8.6186484,3958.9,3958.8,0.002]
[1761083494198,8.1832484,3958.9,3958.8,0.002]
[1761083494995,8.6186484,3958.9,3958.8,0.002]
[1761083498986,8.1832484,3958.9,3958.8,0.002]
[1761083499392,8.6186484,3958.9,3958.8,0.002]
[1761083510973,8.1832484,3958.9,3958.8,0.002]
[1761083512173,8.6186484,3958.9,3958.8,0.002]
[1761083513840,9.16182062,3958.9,3958.8,0.002]
[1761083516748,15.50182062,3958.9,3958.8,0.002]
[1761083517773,15.60311298,3958.9,3958.8,0.002]
[1761083519347,15.16771298,3958.9,3958.8,0.002]
[1761083519756,15.60271298,3958.9,3958.8,0.002]
[1761083520070,15.16771298,3958.9,3958.8,0.002]
[1761083520849,15.60271298,3958.9,3958.8,0.002]
[1761083521690,34.74957898,3958.9,3958.8,0.002]
[1761083522439,35.4285844,3958.9,3958.8,0.002]
[1761083522648,25.80444853,3958.9,3958.8,0.002]
[1761083523059,21.75523853,3958.9,3958.8,0.002]
[1761083523274,19.03947253,3958.9,3958.8,0.002]
[1761083523647,21.75413753,3958.9,3958.8,0.002]
[1761083525239,21.73424853,3958.9,3958.8,0.002]
[1761083526055,19.03947253,3958.9,3958.8,0.002]
[1761083527882,21.74335153,3958.9,3958.8,0.002]
[1761083529077,14.63055871,3958.1,3958.0,0.002]
[1761083529276,28.52034937,3958.1,3958.0,0.002]
[1761083529483,28.95534937,3958.1,3958.0,0.002]
[1761083529775,29.71529612,3958.1,3958.0,0.002]
[1761083530082,29.85820512,3958.1,3958.0,0.002]
[1761083530280,32.32664001,3958.1,3958.0,0.002]
[1761083532093,32.17528001,3958.1,3958.0,0.002]
[1761083532291,31.20750001,3958.1,3958.0,0.002]
[1761083532594,30.91760001,3958.1,3958.0,0.002]
[1761083533089,31.20750001,3958.1,3958.0,0.002]
[1761083534676,30.90568801,3958.1,3958.0,0.002]
[1761083535292,33.23712801,3958.1,3958.0,0.002]
[1761083536167,34.26448101,3958.1,3958.0,0.002]
[1761083536998,32.04465101,3958.1,3958.0,0.002]
[1761083537213,36.68541401,3958.1,3958.0,0.002]
[1761083538184,31.74891401,3958.1,3958.0,0.002]
[1761083538385,31.11346901,3958.1,3958.0,0.002]
[1761083539996,29.85801601,3958.1,3958.0,0.002]
[1761083540716,28.79121501,3958.1,3958.0,0.002]
[1761083541310,28.50552601,3958.1,3958.0,0.002]
[1761083542518,30.82590401,3958.1,3958.0,0.002]
[1761083543519,31.46134901,3958.1,3958.0,0.002]
[1761083544516,42.17115101,3958.1,3958.0,0.002]
[1761083544718,42.84901641,3958.1,3958.0,0.002]
[1761083544916,42.17115101,3958.1,3958.0,0.002]
[1761083545223,36.06992855,3958.1,3958.0,0.002]
[1761083545428,35.54231801,3958.1,3958.0,0.002]
[1761083546500,36.93341501,3958.1,3958.0,0.002]
[1761083547406,22.14171701,3958.1,3958.0,0.002]
[1761083547607,38.43912101,3958.1,3958.0,0.002]
[1761083548009,37.93272401,3958.1,3958.0,0.002]
[1761083548522,35.51410801,3958.1,3958.0,0.002]
[1761083549321,35.27630401,3958.1,3958.0,0.002]
[1761083549524,37.86316001,3958.1,3958.0,0.002]
[1761083550127,36.95498101,3958.1,3958.0,0.002]
[1761083550426,36.17564301,3958.1,3958.0,0.002]
[1761083550620,35.37037201,3958.1,3958.0,0.002]
[1761083551631,36.30749501,3958.1,3958.0,0.002]
[1761083551830,35.84393401,3958.1,3958.0,0.002]
[1761083552527,22.14171701,3958.1,3958.0,0.002]
[1761083552723,38.26601301,3958.1,3958.0,0.002]
[1761083553115,37.76841301,3958.1,3958.0,0.002]
[1761083553724,39.17065455,3958.1,3958.0,0.002]
[1761083553929,38.26683401,3958.1,3958.0,0.002]
[1761083554536,39.17065455,3958.1,3958.0,0.002]
[1761083554715,38.61800355,3958.1,3958.0,0.002]
[1761083555334,0.50688,3957.7,3957.6,0.002]
[1761083555535,21.02587111,3957.7,3957.6,0.002]
[1761083555723,29.04545017,3957.7,3957.6,0.002]
[1761083556105,29.1467936,3957.7,3957.6,0.002]
[1761083556709,25.8114606,3957.7,3957.6,0.002]
[1761083557031,26.48802299,3957.7,3957.6,0.002]
[1761083557635,24.16483099,3957.7,3957.6,0.002]
[1761083557835,20.31589499,3957.7,3957.6,0.002]
[1761083558028,19.6393326,3957.7,3957.6,0.002]
[1761083558538,20.31589499,3957.7,3957.6,0.002]
[1761083558734,19.93439599,3957.7,3957.6,0.002]
[1761083559109,14.57047599,3957.7,3957.6,0.002]
[1761083560440,16.65113799,3957.7,3957.6,0.002]
[1761083561140,14.57047599,3957.7,3957.6,0.002]
[1761083561343,20.90847599,3957.7,3957.6,0.002]
[1761083561711,23.52327399,3957.7,3957.6,0.002]
[1761083561911,23.83613288,3957.7,3957.6,0.002]
[1761083562222,21.22133488,3957.7,3957.6,0.002]
[1761083563642,33.92115568,3957.7,3957.6,0.002]
[1761083563843,24.14029249,3957.7,3957.6,0.002]
[1761083564068,20.98887249,3957.7,3957.6,0.002]
[1761083564251,20.54377249,3957.7,3957.6,0.002]
[1761083564955,22.62523949,3957.7,3957.6,0.002]
[1761083565129,22.6241404,3957.7,3957.6,0.002]
[1761083565327,19.3691404,3957.7,3957.6,0.002]
[1761083565530,20.5426734,3957.7,3957.6,0.002]
[1761083566363,20.9877734,3957.7,3957.6,0.002]
[1761083567050,20.5426734,3957.7,3957.6,0.002]
[1761083569296,20.93898439,3957.7,3957.6,0.002]
[1761083569498,21.84241493,3957.7,3957.6,0.002]
[1761083569792,21.44610394,3957.7,3957.6,0.002]
[1761083570586,25.34784694,3957.7,3957.6,0.002]
[1761083571647,25.83442994,3957.7,3957.6,0.002]
[1761083572351,26.27952994,3957.7,3957.6,0.002]
[1761083572776,22.36839757,3957.7,3957.6,0.002]
[1761083572972,25.62239757,3957.7,3957.6,0.002]
[1761083573390,24.71896703,3957.7,3957.6,0.002]
[1761083573554,24.71980403,3957.7,3957.6,0.002]
[1761083574578,21.38308103,3957.7,3957.6,0.002]
[1761083574785,25.33207171,3957.7,3957.6,0.002]
[1761083575199,25.34747171,3957.7,3957.6,0.002]
[1761083575383,21.55024871,3957.7,3957.6,0.002]
[1761083575704,24.62011871,3957.7,3957.6,0.002]
[1761083577010,25.08061871,3957.7,3957.6,0.002]
[1761083578084,24.62011871,3957.7,3957.6,0.002]
[1761083578280,25.08061871,3957.7,3957.6,0.002]
[1761083578812,29.12386171,3957.7,3957.6,0.002]
[1761083579309,28.92119671,3957.7,3957.6,0.002]
[1761083579673,26.63574071,3957.7,3957.6,0.002]
[1761083580420,25.48161871,3957.7,3957.6,0.002]
[1761083580573,25.48061871,3957.7,3957.6,0.002]
[1761083580770,26.84339571,3957.7,3957.6,0.002]
[1761083581295,25.43061871,3957.7,3957.6,0.002]
[1761083581871,21.54924871,3957.7,3957.6,0.002]
[1761083582074,26.79338671,3957.7,3957.6,0.002]
[1761083582804,23.54038671,3957.7,3957.6,0.002]
[1761083583005,26.79338671,3957.7,3957.6,0.002]
[1761083583801,27.25388671,3957.7,3957.6,0.002]
[1761083584005,42.03918271,3957.7,3957.6,0.002]
[1761083584406,37.60246728,3957.7,3957.6,0.002]
[1761083585090,41.47733928,3957.7,3957.6,0.002]
[1761083585615,37.17828928,3957.7,3957.6,0.002]
[1761083586109,21.90840528,3957.7,3957.6,0.002]
[1761083586409,38.46155828,3957.7,3957.6,0.002]
[1761083586585,38.46155828,3957.7,3957.0,0.002]
[1761083586586,6.90851118,3957.1,3957.0,0.002]
[1761083586790,22.20660479,3957.1,3957.0,0.002]
[1761083586992,22.51946368,3957.1,3957.0,0.002]
[1761083587212,29.16746868,3957.1,3957.0,0.002]
[1761083588195,20.20013568,3957.1,3957.0,0.002]
[1761083588489,29.16828568,3957.1,3957.0,0.002]
[1761083588690,28.66101468,3957.1,3957.0,0.002]
[1761083588886,27.66101468,3957.1,3957.0,0.002]
[1761083589087,28.12151468,3957.1,3957.0,0.002]
[1761083589286,34.67396168,3957.1,3957.0,0.002]
[1761083589487,34.21346168,3957.1,3957.0,0.002]
[1761083589693,32.20553089,3957.1,3957.0,0.002]
[1761083590210,37.94242768,3957.1,3957.0,0.002]
[1761083590512,36.78472968,3957.1,3957.0,0.002]
[1761083590912,31.48750568,3957.1,3957.0,0.002]
[1761083591207,34.80288168,3957.1,3957.0,0.002]
[1761083591712,34.12468289,3957.1,3957.0,0.002]
[1761083591913,31.89162289,3957.1,3957.0,0.002]
[1761083592111,31.89162289,3957.1,3956.8,1e-08]
[1761083592112,3.03411091,3956.9,3956.8,1e-08]
[1761083592310,19.03741712,3956.9,3956.8,1e-08]
[1761083592517,19.46632674,3956.9,3956.8,1e-08]
[1761083592894,20.14414629,3956.9,3956.8,1e-08]
[1761083593217,19.46632674,3956.9,3956.8,1e-08]
[1761083593898,22.92704663,3956.9,3956.8,1e-08]
[1761083594135,28.80454663,3956.9,3956.8,1e-08]
[1761083594300,24.85963868,3956.9,3956.8,1e-08]
[1761083594614,23.95537363,3956.9,3956.8,1e-08]
[1761083594813,23.95537363,3956.9,3955.9,0.002]
[1761083594814,0.50688,3956.2,3955.9,0.002]
[1761083595023,8.13203309,3956.0,3955.9,0.002]
[1761083595210,8.67410622,3956.0,3955.9,0.002]
[1761083595594,15.96101422,3956.0,3955.9,0.002]
[1761083596117,19.68827722,3956.0,3955.9,0.002]
[1761083596319,16.63729495,3956.0,3955.9,0.002]
[1761083596630,19.54292085,3956.0,3955.9,0.002]
[1761083597123,12.21163985,3956.0,3955.9,0.002]
[1761083597313,28.80837785,3956.0,3955.9,0.002]
[1761083597515,27.15986385,3956.0,3955.9,0.002]
[1761083598444,28.65020174,3956.0,3955.9,0.002]
[1761083598630,28.18830174,3956.0,3955.9,0.002]
[1761083599245,28.18700174,3956.0,3955.9,0.002]
[1761083599540,27.72780174,3956.0,3955.9,0.002]
[1761083599833,28.18700174,3956.0,3955.9,0.002]
[1761083600335,23.01801174,3956.0,3955.9,0.002]
[1761083601242,24.69026074,3956.0,3955.9,0.002]
[1761083601641,17.91454474,3956.0,3955.9,0.002]
[1761083601937,9.30601395,3956.0,3955.9,0.002]
[1761083602135,12.55601395,3956.0,3955.9,0.002]
[1761083602715,9.30601395,3956.0,3955.9,0.002]
[1761083602943,12.55601395,3956.0,3955.9,0.002]
[1761083603816,9.30601395,3956.0,3955.9,0.002]
[1761083604136,12.55601395,3956.0,3955.9,0.002]
[1761083605144,13.0450684,3956.0,3955.9,0.002]
[1761083608031,9.30601395,3956.0,3955.9,0.002]
[1761083608245,8.50698672,3956.0,3955.9,0.002]
[1761083610029,20.40401561,3956.0,3955.9,0.002]
[1761083610627,17.86897161,3956.0,3955.9,0.002]
[1761083611140,16.86897161,3956.0,3955.9,0.002]
[1761083611316,19.0676065,3956.0,3955.9,0.002]
[1761083611848,25.4056065,3956.0,3955.9,0.002]
[1761083612661,17.6262805,3956.0,3955.9,0.002]
[1761083613158,20.0014245,3956.0,3955.9,0.002]
[1761083613525,19.6884215,3956.0,3955.9,0.002]
[1761083614432,17.6262805,3956.0,3955.9,0.002]
[1761083616433,17.6252805,3956.0,3955.9,0.002]
[1761083616825,19.6884055,3956.0,3955.9,0.002]
[1761083617150,17.6252805,3956.0,3955.9,0.002]
[1761083618452,20.3721655,3956.0,3955.9,0.002]
[1761083618650,19.9057655,3956.0,3955.9,0.002]
[1761083618852,17.6252805,3956.0,3955.9,0.002]
[1761083622276,18.30273244,3956.0,3955.9,0.002]
[1761083623267,17.6252805,3956.0,3955.9,0.002]
[1761083624271,14.3762805,3956.0,3955.9,0.002]
[1761083624476,17.6242805,3956.0,3955.9,0.002]
[1761083625373,27.5002575,3956.0,3955.9,0.002]
[1761083625569,25.69475175,3956.0,3955.9,0.002]
[1761083625779,27.8082545,3956.0,3955.9,0.002]
[1761083626084,24.3492445,3956.0,3955.9,0.002]
[1761083627257,24.8156445,3956.0,3955.9,0.002]
[1761083627859,4.08326148,3955.6,3955.5,0.002]
[1761083628090,12.63059175,3955.6,3955.5,0.002]
[1761083628387,12.59899099,3955.6,3955.5,0.002]
[1761083629391,18.82656873,3955.6,3955.5,0.002]
[1761083630389,33.91438469,3955.6,3955.5,0.002]
[1761083630576,36.15662039,3955.6,3955.5,0.002]
[1761083631091,36.15664164,3955.6,3955.5,0.002]
[1761083632093,35.47917043,3955.6,3955.5,0.002]
[1761083632258,36.15653134,3955.6,3955.5,0.002]
[1761083632884,35.47917043,3955.6,3955.5,0.002]
[1761083634663,34.87468266,3955.6,3955.5,0.002]
[1761083635074,34.87568266,3955.6,3955.5,0.002]
[1761083635520,14.84624866,3955.6,3955.5,0.002]
[1761083635675,34.87568266,3955.6,3955.5,0.002]
[1761083637511,41.21368266,3955.6,3955.5,0.002]
[1761083641592,40.74728266,3955.6,3955.5,0.002]
[1761083641814,40.74728266,3955.6,3954.8,0.002]
[1761083641815,17.86138215,3955.2,3954.8,0.002]
[1761083641984,21.57967801,3955.2,3954.8,0.002]
[1761083642191,20.99000363,3955.2,3954.8,0.002]
[1761083642712,26.72412163,3955.2,3954.8,0.002]
[1761083642891,26.06440763,3955.2,3954.8,0.002]
[1761083643112,28.53284252,3955.2,3954.8,0.002]
[1761083643630,24.36879252,3955.2,3954.8,0.002]
[1761083643810,30.90582952,3955.2,3954.8,0.002]
[1761083644007,29.82530552,3955.2,3954.8,0.002]
[1761083644701,35.07623752,3955.2,3954.8,0.002]
[1761083644905,34.77856275,3955.2,3954.8,0.002]
[1761083645105,33.81156175,3955.2,3954.8,0.002]
[1761083645504,26.89234275,3955.2,3954.8,0.002]
[1761083645835,29.91093602,3955.2,3954.8,0.002]
[1761083646943,32.70305602,3955.2,3954.8,0.002]
[1761083647909,32.70180902,3955.2,3954.8,0.002]
[1761083648312,31.79927575,3955.2,3954.8,0.002]
[1761083648739,30.80855775,3955.2,3954.8,0.002]
[1761083649039,30.80260975,3955.2,3954.8,0.002]
[1761083649246,30.03878675,3955.2,3954.8,0.002]
[1761083649612,28.01152275,3955.2,3954.8,0.002]
[1761083649810,28.01152275,3955.2,3954.7,0.002]
[1761083649811,3.03545287,3954.8,3954.7,0.002]
[1761083650015,31.85169946,3954.8,3954.7,0.002]
[1761083651381,35.29623892,3954.8,3954.7,0.002]
[1761083651947,15.26680492,3954.8,3954.7,0.002]
[1761083652149,35.29623892,3954.8,3954.7,0.002]
[1761083652487,37.53847462,3954.8,3954.7,0.002]
[1761083653081,17.50904062,3954.8,3954.7,0.002]
[1761083653294,43.87647462,3954.8,3954.7,0.002]
[1761083653785,44.18933351,3954.8,3954.7,0.002]
[1761083655188,24.15989951,3954.8,3954.7,0.002]
[1761083655494,44.18933351,3954.8,3954.7,0.002]
[1761083657673,14.77568964,3954.4,3954.3,0.002]
[1761083657873,25.44746648,3954.4,3954.3,0.002]
[1761083658656,25.76032537,3954.4,3954.3,0.002]
[1761083658962,29.57173737,3954.4,3954.3,0.002]
[1761083659587,26.05375737,3954.4,3954.3,0.002]
[1761083660084,26.00524737,3954.4,3954.3,0.002]
[1761083660301,1.5552,3953.6,3953.5,0.0083]